bitfinex/quotes_SOLUSD_20241110
["timestamp","ask_amount","ask_price","bid_price","bid_amount"]
[1731231797953,0.1,206.06,205.95,32.684925]
[1731231798153,9.06374101,205.98,205.96,20.0]
[1731231798449,9.06374101,205.99,205.96,20.0]
[1731231799041,9.06374101,205.98,205.96,20.0]
[1731231799250,0.2,206.08,205.96,20.0]
[1731231799451,9.06374101,205.99,205.96,20.0]
[1731231799852,9.06374101,205.98,205.96,20.0]
[1731231800841,0.2,206.08,205.96,20.0]
[1731231801042,9.06374101,206.02,205.96,29.06374101]
[1731231801554,9.06374101,206.02,205.96,20.0]
[1731231801758,9.06374101,206.01,205.96,20.0]
[1731231803353,9.06374101,205.97,205.96,20.0]
[1731231810945,0.12549,206.04,205.96,20.0]
[1731231811250,9.06374101,205.97,205.96,20.0]
[1731231812053,0.12549,206.04,205.96,20.0]
[1731231812258,9.06374101,205.97,205.96,20.0]
[1731231813863,9.06374101,205.98,205.96,20.0]
[1731231814362,9.06374101,205.97,205.96,20.0]
[1731231815053,255.3,206.24,205.96,20.0]
[1731231815054,6.4203,206.1,205.96,20.0]
[1731231815360,42.67526404,206.1,205.98,20.0]
[1731231815540,9.06374101,206.04,205.98,20.0]
[1731231815745,42.67526404,206.1,205.98,20.0]
[1731231815746,9.06374101,206.03,205.98,20.0]
[1731231815946,9.06374101,206.02,205.98,20.0]
[1731231817157,9.06374101,206.01,205.98,20.0]
[1731231817464,9.06374101,205.99,205.98,20.0]
[1731231818056,0.22549,206.09,205.98,20.0]
[1731231818459,9.06374101,205.99,205.98,20.0]
[1731231818661,0.12549,206.09,205.98,20.0]
[1731231818857,9.06374101,206.01,205.98,20.0]
[1731231820054,9.06374101,206.0,205.98,20.0]
[1731231821153,9.06374101,206.0,205.95,17.011725]
[1731231821154,9.06374101,205.99,205.95,17.011725]
[1731231821363,9.18923101,205.96,205.95,17.011725]
[1731231822356,9.06374101,205.96,205.95,17.011725]
[1731231822552,9.06374101,205.96,205.95,37.011725]
[1731231823065,5.16004295,206.05,205.95,37.011725]
[1731231823066,5.06004295,206.05,205.96,20.0]
[1731231823254,9.06374101,206.02,205.96,20.0]
[1731231823966,19.1313,206.08,205.96,20.0]
[1731231824172,9.06374101,206.02,205.96,29.06374101]
[1731231824369,9.06374101,206.03,205.96,29.06374101]
[1731231824671,6.665,206.08,205.96,29.06374101]
[1731231824672,9.06374101,206.0,205.96,20.0]
[1731231825475,14.12512033,206.0,205.96,20.0]
[1731231827263,14.12512033,206.02,205.96,34.12512033]
[1731231828067,6.665,206.08,205.96,34.12512033]
[1731231828273,14.12512033,206.02,205.96,20.0]
[1731231830060,14.12512033,206.01,205.96,20.0]
[1731231831656,14.12512033,206.0,205.96,20.0]
[1731231834476,14.12512033,206.01,205.96,20.0]
[1731231834855,0.12549,206.07,205.96,20.0]
[1731231835075,14.12512033,206.01,205.96,20.0]
[1731231835383,14.12512033,206.0,205.96,20.0]
[1731231835563,14.12512033,205.99,205.96,20.0]
[1731231835970,14.12512033,205.97,205.95,17.011725]
[1731231836186,14.12512033,205.96,205.95,17.011725]
[1731231836471,14.12512033,205.97,205.95,17.011725]
[1731231837462,14.12512033,205.97,205.96,20.0]
[1731231838279,14.12512033,205.98,205.96,20.0]
[1731231839082,14.12512033,205.97,205.96,20.0]
[1731231840171,0.12549,206.05,205.96,20.0]
[1731231840384,14.12512033,205.98,205.96,20.0]
[1731231840786,14.12512033,205.97,205.96,20.0]
[1731231845296,9.04389334,205.97,205.96,20.0]
[1731231845779,9.04389334,205.98,205.96,20.0]
[1731231846387,9.04389334,205.97,205.96,20.0]
[1731231848695,6.665,206.08,205.96,29.04389334]
[1731231848901,9.04389334,206.02,205.96,29.04389334]
[1731231849282,9.04389334,206.0,205.96,20.0]
[1731231849483,0.12549,206.07,205.96,20.0]
[1731231849681,9.04389334,205.99,205.96,20.0]
[1731231849898,9.04389334,206.0,205.96,20.0]
[1731231851379,14.12565253,206.0,205.96,20.0]
[1731231851585,14.12565253,206.01,205.96,20.0]
[1731231852088,14.12565253,206.0,205.96,20.0]
[1731231852291,14.12565253,205.97,205.96,20.0]
[1731231852494,14.12565253,205.97,205.95,17.011725]
[1731231852803,14.12565253,205.96,205.95,17.011725]
[1731231853586,14.12565253,205.96,205.95,37.011725]
[1731231855502,0.12549,206.03,205.96,20.0]
[1731231855690,14.12565253,205.97,205.96,20.0]
[1731231858181,14.25114253,205.97,205.96,20.0]
[1731231858980,14.25114253,205.97,205.95,37.011725]
[1731231858981,0.12549,205.96,205.95,37.011725]
[1731231859184,14.25114253,205.96,205.95,37.011725]
[1731231862489,14.25114253,205.96,205.95,17.011725]
[1731231864586,14.25114253,205.96,205.95,37.011725]
[1731231865982,14.25114253,205.96,205.95,17.011725]
[1731231866181,14.22374058,205.96,205.95,17.011725]
[1731231866583,14.22374058,205.96,205.85,21.6036]
[1731231866807,14.12565253,205.87,205.85,21.6036]
[1731231866991,14.12565253,205.87,205.85,15.3252]
[1731231867186,14.12565253,205.86,205.8,21.6206]
[1731231867384,14.12565253,205.83,205.8,21.6206]
[1731231867604,14.12565253,205.84,205.8,21.6206]
[1731231867790,14.12565253,205.83,205.8,21.6206]
[1731231867991,14.12565253,205.82,205.8,15.1687]
[1731231869298,14.12565253,205.82,205.81,20.0]
[1731231870093,14.12565253,205.82,205.8,15.1687]
[1731231870296,14.12565253,205.81,205.8,15.1687]
[1731231870882,14.12565253,205.81,205.75,15.1687]
[1731231871089,14.12565253,205.79,205.75,15.1687]
[1731231871902,14.12565253,205.8,205.75,15.1687]
[1731231872211,14.12565253,205.81,205.76,20.0]
[1731231872388,14.12565253,205.82,205.76,34.12565253]
[1731231872917,14.12565253,205.82,205.76,20.0]
[1731231873082,14.12565253,205.79,205.76,20.0]
[1731231873287,14.12565253,205.8,205.76,20.0]
[1731231874288,14.12565253,205.79,205.76,20.0]
[1731231874688,14.12565253,205.78,205.76,20.0]
[1731231874895,14.09155253,205.77,205.76,20.0]
[1731231875111,14.0828545,205.77,205.76,20.0]
[1731231875313,14.0828545,205.77,205.75,15.1687]
[1731231875499,14.12565253,205.76,205.7,15.1687]
[1731231875809,14.12565253,205.74,205.7,15.1687]
[1731231876316,0.12549,205.79,205.7,15.1687]
[1731231876503,14.12565253,205.74,205.7,15.1687]
[1731231876704,14.12565253,205.74,205.71,20.0]
[1731231876903,14.12565253,205.73,205.71,20.0]
[1731231877123,14.12565253,205.73,205.7,15.1687]
[1731231877625,14.12565253,205.72,205.7,15.1687]
[1731231878393,0.12549,205.79,205.7,15.1687]
[1731231878615,14.12565253,205.72,205.71,20.0]
[1731231879111,14.12565253,205.73,205.71,20.0]
[1731231881202,14.12565253,205.72,205.71,20.0]
[1731231881719,14.12565253,205.72,205.65,20.57755253]
[1731231881720,14.12565253,205.72,205.66,20.0]
[1731231881916,14.12565253,205.67,205.65,22.6026]
[1731231882109,14.12565253,205.68,205.65,22.6026]
[1731231882507,14.12565253,205.68,205.65,16.1507]
[1731231883425,14.12565253,205.68,205.66,20.0]
[1731231884130,14.12565253,205.67,205.65,16.1507]
[1731231884431,14.12565253,205.66,205.61,16.5987]
[1731231884609,14.12565253,205.64,205.61,16.5987]
[1731231885232,14.12565253,205.65,205.61,16.5987]
[1731231885428,0.22549,205.75,205.61,16.5987]
[1731231885723,14.12565253,205.63,205.62,20.0]
[1731231886305,14.12565253,205.63,205.61,16.5987]
[1731231886524,14.12565253,205.62,205.59,14.125652]
[1731231887525,14.12565253,205.62,205.6,20.0]
[1731231889809,14.12565253,205.61,205.6,20.0]
[1731231890033,14.12565253,205.61,205.59,14.125652]
[1731231890211,14.12565253,205.6,205.59,14.125652]
[1731231891632,14.12565253,205.6,205.59,34.125652]
[1731231891837,14.12565253,205.6,205.59,20.0]
[1731231892529,12.59179,205.69,205.57,20.0]
[1731231892729,14.12565253,205.66,205.6,14.12565253]
[1731231892922,14.12565253,205.68,205.62,34.12565253]
[1731231893122,14.12565253,205.69,205.63,20.0]
[1731231893432,14.12565253,205.68,205.64,20.0]
[1731231893632,14.12565253,205.67,205.62,20.0]
[1731231895744,12.4663,205.74,205.58,6.2547]
[1731231895745,14.12565253,205.69,205.63,14.12565253]
[1731231896113,14.12565253,205.69,205.64,20.0]
[1731231897142,14.12565253,205.68,205.63,20.0]
[1731231898135,14.12565253,205.68,205.62,20.0]
[1731231899223,14.12565253,205.68,205.62,14.12565253]
[1731231899435,14.12565253,205.68,205.63,20.0]
[1731231899630,14.12565253,205.66,205.63,20.0]
[1731231899825,14.12565253,205.67,205.63,20.0]
[1731231900031,0.12549,205.73,205.61,14.12565253]
[1731231900032,14.12565253,205.68,205.62,20.0]
[1731231900422,14.12565253,205.69,205.63,14.12565253]
[1731231900729,14.12565253,205.69,205.66,20.0]
[1731231900920,14.12565253,205.68,205.66,20.0]
[1731231901118,14.12565253,205.67,205.65,20.0]
[1731231901539,14.12565253,205.66,205.65,20.0]
[1731231901934,14.12565253,205.66,205.61,20.0]
[1731231902244,14.12565253,205.63,205.59,15.1031]
[1731231902629,14.12565253,205.64,205.59,15.1031]
[1731231903132,14.12565253,205.63,205.59,15.1031]
[1731231903538,0.12549,205.69,205.59,15.1031]
[1731231903539,14.12565253,205.64,205.6,20.0]
[1731231904341,14.12565253,205.62,205.6,20.0]
[1731231905554,14.12565253,205.61,205.56,20.0]
[1731231905726,14.12565253,205.6,205.55,20.0]
[1731231906533,14.12565253,205.57,205.54,16.3297]
[1731231906750,14.12565253,205.56,205.54,16.3297]
[1731231907227,14.12565253,205.56,205.5,14.12565253]
[1731231907429,14.12565253,205.56,205.49,41.3297]
[1731231907737,14.12565253,205.55,205.49,55.45535253]
[1731231908046,14.12565253,205.55,205.49,41.3297]
[1731231908426,0.1,205.63,205.5,20.0]
[1731231908621,14.12565253,205.55,205.5,20.0]
[1731231909552,14.12565253,205.56,205.5,34.12565253]
[1731231910043,14.12565253,205.57,205.51,14.12565253]
[1731231910355,14.12565253,205.59,205.54,20.0]
[1731231910529,14.12565253,205.61,205.55,14.12565253]
[1731231910731,14.12565253,205.61,205.56,20.0]
[1731231911128,14.12565253,205.62,205.56,34.12565253]
[1731231911332,14.12565253,205.63,205.56,34.12565253]
[1731231911527,14.12565253,205.63,205.57,14.12565253]
[1731231911741,14.12565253,205.63,205.58,20.0]
[1731231911947,0.22549,205.69,205.58,20.0]
[1731231912146,14.12565253,205.63,205.58,20.0]
[1731231912935,14.12565253,205.62,205.58,20.0]
[1731231913247,14.12565253,205.61,205.56,20.0]
[1731231913859,0.32549,205.69,205.56,20.0]
[1731231914165,14.12565253,205.61,205.56,20.0]
[1731231914345,14.12565253,205.6,205.54,14.12565253]
[1731231914668,0.22549,205.69,205.58,20.0]
[1731231915038,14.12565253,205.63,205.58,20.0]
[1731231915265,14.12565253,205.63,205.55,5.39243969]
[1731231915266,14.12565253,205.63,205.56,34.12565253]
[1731231915459,14.12565253,205.62,205.56,34.12565253]
[1731231917374,14.12565253,205.58,205.5,5.39243969]
[1731231917668,14.12565253,205.58,205.52,14.12565253]
[1731231918365,14.12565253,205.58,205.51,14.12565253]
[1731231918539,14.12565253,205.58,205.52,20.0]
[1731231918746,14.12565253,205.54,205.49,41.3297]
[1731231918973,14.12565253,205.56,205.49,55.45535253]
[1731231919144,14.12565253,205.57,205.5,14.12565253]
[1731231919341,14.12565253,205.58,205.51,14.12565253]
[1731231919748,14.12565253,205.59,205.52,14.12565253]
[1731231920058,14.12565253,205.62,205.55,14.12565253]
[1731231920264,14.12565253,205.62,205.56,14.12565253]
[1731231920579,14.12565253,205.61,205.56,20.0]
[1731231921871,14.12565253,205.61,205.54,14.12565253]
[1731231922059,14.12565253,205.61,205.55,20.0]
[1731231922447,14.12565253,205.61,205.55,14.12565253]
[1731231922647,14.12565253,205.61,205.56,20.0]
[1731231924660,19.1241,205.67,205.55,20.0]
[1731231924661,14.12565253,205.6,205.55,20.0]
[1731231926151,14.12565253,205.61,205.55,20.0]
[1731231927558,14.12565253,205.6,205.55,20.0]
[1731231927857,14.12565253,205.61,205.55,20.0]
[1731231929460,9.07457333,205.59,205.51,20.0]
[1731231929655,9.07457333,205.59,205.54,20.0]
[1731231930560,9.07457333,205.6,205.55,20.0]
[1731231931371,0.12549,205.66,205.5,9.9107102]
[1731231931372,9.07457333,205.57,205.51,20.0]
[1731231931563,9.07457333,205.57,205.51,29.07457333]
[1731231931955,0.12549,205.66,205.56,9.07457333]
[1731231932163,9.07457333,205.64,205.57,9.07457333]
[1731231932377,161.4,205.74,205.61,9.07457333]
[1731231932614,9.07457333,205.67,205.62,20.0]
[1731231933269,9.07457333,205.66,205.62,20.0]
[1731231933465,9.07457333,205.66,205.61,9.07457333]
[1731231933466,6.3386,205.73,205.64,20.0]
[1731231933657,9.07457333,205.7,205.65,20.0]
[1731231934974,9.07457333,205.66,205.6,20.0]
[1731231935186,9.07457333,205.63,205.6,20.0]
[1731231935362,14.17556313,205.63,205.6,20.0]
[1731231936259,14.17556313,205.64,205.6,20.0]
[1731231936465,14.17556313,205.63,205.6,20.0]
[1731231939871,14.17556313,205.64,205.6,20.0]
[1731231940271,14.17556313,205.63,205.6,20.0]
[1731231941189,14.17556313,205.64,205.6,20.0]
[1731231941387,14.17556313,205.63,205.6,20.0]
[1731231942787,14.17556313,205.61,205.55,20.0]
[1731231942983,14.37556313,205.7,205.54,16.6189]
[1731231942984,14.17556313,205.58,205.54,16.6189]
[1731231945176,14.17556313,205.57,205.54,16.6189]
[1731231945377,14.17556313,205.56,205.5,30.79576313]
[1731231946596,14.17556313,205.56,205.51,20.0]
[1731231948096,14.17556313,205.55,205.51,20.0]
[1731231948488,14.17556313,205.54,205.51,20.0]
[1731231949399,14.17556313,205.53,205.5,16.6202]
[1731231949580,0.12549,205.59,205.49,25.0]
[1731231949581,14.17556313,205.51,205.49,25.0]
[1731231949980,14.17556313,205.52,205.49,25.0]
[1731231950682,14.17556313,205.51,205.49,25.0]
[1731231951097,14.17556313,205.51,205.5,20.0]
[1731231952316,14.17556313,205.51,205.49,25.0]
[1731231952618,14.17556313,205.5,205.49,25.0]
[1731231954600,14.17556313,205.5,205.49,45.0]
[1731231954997,14.17556313,205.5,205.41,25.79576313]
[1731231955307,6.2548,205.57,205.41,25.79576313]
[1731231955308,14.17556313,205.47,205.42,20.0]
[1731231955811,14.17556313,205.45,205.41,11.6202]
[1731231956109,14.17556313,205.43,205.41,11.6202]
[1731231956290,14.17556313,205.44,205.41,11.6202]
[1731231956492,14.17556313,205.45,205.41,11.6202]
[1731231957110,14.17556313,205.45,205.42,20.0]
[1731231957419,0.1,205.54,205.42,20.0]
[1731231957420,14.17556313,205.47,205.42,20.0]
[1731231957915,0.2,205.54,205.42,20.0]
[1731231957916,14.17556313,205.46,205.42,20.0]
[1731231958902,14.17556313,205.46,205.41,11.6202]
[1731231958903,14.17556313,205.43,205.41,20.0]
[1731231959103,14.17556313,205.43,205.4,40.3355931]
[1731231959423,9.09110035,205.41,205.4,40.3355931]
[1731231960727,9.09110035,205.41,205.4,60.3355931]
[1731231961304,14.20802439,205.41,205.4,60.3355931]
[1731231964515,14.33351439,205.41,205.4,40.3355931]
[1731231965128,28.54153878,205.41,205.4,40.3355931]
[1731231966337,28.64153878,205.41,205.4,40.3355931]
[1731231966841,0.1,205.39,205.26,6.1501]
[1731231967136,14.20802439,205.28,205.24,15.2319]
[1731231967633,14.20802439,205.25,205.24,15.2319]
[1731231967934,14.20802439,205.25,205.19,0.84646787]
[1731231968109,14.20802439,205.24,205.19,0.84646787]
[1731231968312,14.20802439,205.22,205.11,11.00584533]
[1731231968533,14.20802439,205.21,205.15,15.0546567]
[1731231968705,14.20802439,205.22,205.11,11.00584533]
[1731231968920,14.20802439,205.22,205.16,14.20802439]
[1731231969332,14.20802439,205.22,205.12,0.8466072]
[1731231969333,14.20802439,205.17,205.12,0.8466072]
[1731231969633,14.20802439,205.18,205.12,0.8466072]
[1731231970220,14.20802439,205.17,205.12,0.8466072]
[1731231970513,15.8283,205.25,205.12,0.8466072]
[1731231970514,14.20802439,205.15,205.12,0.8466072]
[1731231970833,14.20802439,205.16,205.09,14.20802439]
[1731231971133,0.1,205.24,205.09,14.20802439]
[1731231971134,14.20802439,205.15,205.09,14.20802439]
[1731231971432,14.20802439,205.15,205.08,15.2319]
[1731231971433,14.20802439,205.16,205.08,15.2319]
[1731231971610,14.20802439,205.17,205.11,14.20802439]
[1731231971940,15.9283,205.25,205.08,15.2319]
[1731231971941,14.20802439,205.16,205.1,14.20802439]
[1731231972146,14.20802439,205.17,205.11,14.20802439]
[1731231972313,14.20802439,205.16,205.1,14.20802439]
[1731231972633,15.9283,205.25,205.08,15.2319]
[1731231972634,14.20802439,205.14,205.09,20.0]
[1731231972942,14.20802439,205.16,205.1,14.20802439]
[1731231973125,14.20802439,205.16,205.11,20.0]
[1731231973308,14.20802439,205.17,205.11,34.20802439]
[1731231973723,14.20802439,205.19,205.13,34.20802439]
[1731231973933,14.20802439,205.19,205.12,14.20802439]
[1731231974120,14.20802439,205.18,205.13,20.0]
[1731231974525,14.20802439,205.23,205.17,34.20802439]
[1731231974858,14.20802439,205.24,205.18,34.20802439]
[1731231975154,14.20802439,205.24,205.18,20.0]
[1731231975524,14.20802439,205.23,205.18,20.0]
[1731231975919,0.12549,205.29,205.17,20.0]
[1731231975920,14.20802439,205.22,205.17,20.0]
[1731231976125,14.20802439,205.2,205.17,20.0]
[1731231976427,14.20802439,205.18,205.17,20.0]
[1731231976628,14.20802439,205.18,205.13,20.0]
[1731231977340,14.20802439,205.15,205.09,14.20802439]
[1731231977847,14.20802439,205.15,205.08,15.2319]
[1731231977848,14.20802439,205.15,205.08,29.43992439]
[1731231978543,14.20802439,205.15,205.09,14.20802439]
[1731231978841,6.4113,205.22,205.09,14.20802439]
[1731231978842,14.20802439,205.18,205.13,20.0]
[1731231979148,14.20802439,205.17,205.13,20.0]
[1731231979639,14.20802439,205.17,205.12,20.0]
[1731231979944,14.20802439,205.17,205.1,14.20802439]
[1731231980238,14.20802439,205.15,205.11,20.0]
[1731231980442,14.20802439,205.15,205.09,20.0]
[1731231980923,14.20802439,205.14,205.09,20.0]
[1731231981122,14.20802439,205.14,205.08,29.43992439]
[1731231981329,14.20802439,205.13,205.08,15.2319]
[1731231981940,14.20802439,205.12,205.08,15.2319]
[1731231982145,14.20802439,205.1,205.07,0.84690434]
[1731231982332,14.20802439,205.09,205.03,15.0973]
[1731231983457,14.20802439,205.08,205.03,15.0973]
[1731231983632,0.1,205.17,205.03,15.0973]
[1731231983633,14.20802439,205.09,205.04,20.0]
[1731231983829,14.20802439,205.11,205.06,20.0]
[1731231984028,14.20802439,205.12,205.06,14.20802439]
[1731231984334,0.2,205.19,205.03,15.0973]
[1731231984335,14.20802439,205.11,205.05,14.20802439]
[1731231984536,14.20802439,205.12,205.06,14.20802439]
[1731231985173,14.20802439,205.13,205.07,14.20802439]
[1731231985454,14.20802439,205.14,205.08,14.20802439]
[1731231985754,14.20802439,205.13,205.07,14.20802439]
[1731231985964,14.20802439,205.13,205.06,14.20802439]
[1731231986253,14.20802439,205.13,205.07,14.20802439]
[1731231986451,14.20802439,205.13,205.08,20.0]
[1731231987038,14.20802439,205.12,205.06,14.20802439]
[1731231987237,14.20802439,205.12,205.07,20.0]
[1731231987755,14.20802439,205.12,205.06,14.20802439]
[1731231988132,14.20802439,205.14,205.09,20.0]
[1731231988329,14.20802439,205.16,205.09,34.20802439]
[1731231988966,14.20802439,205.16,205.1,14.20802439]
[1731231989268,14.20802439,205.19,205.13,20.0]
[1731231989457,14.20802439,205.2,205.15,20.0]
[1731231989764,14.20802439,205.16,205.15,20.0]
[1731231990173,14.20802439,205.16,205.13,20.0]
[1731231990467,14.20802439,205.17,205.13,20.0]
[1731231990677,14.20802439,205.16,205.13,20.0]
[1731231991656,5.14984622,205.24,205.1,20.0]
[1731231991657,14.20802439,205.14,205.1,20.0]
[1731231992183,14.20802439,205.12,205.07,16.0489]
[1731231992348,14.20802439,205.11,205.07,16.0489]
[1731231992688,14.20802439,205.12,205.07,16.0489]
[1731231993167,14.20802439,205.12,205.08,20.0]
[1731231993871,14.20802439,205.11,205.08,20.0]
[1731231994084,14.20802439,205.12,205.08,20.0]
[1731231994866,14.20802439,205.12,205.07,16.0489]
[1731231995170,14.20802439,205.11,205.05,14.20802439]
[1731231995469,14.20802439,205.14,205.08,14.20802439]
[1731231995673,14.20802439,205.15,205.08,14.20802439]
[1731231995975,14.20802439,205.15,205.09,14.20802439]
[1731231996187,14.20802439,205.19,205.12,14.20802439]
[1731231996354,22.4556,205.27,205.15,34.20802439]
[1731231996355,14.20802439,205.22,205.15,34.20802439]
[1731231996559,14.20802439,205.22,205.11,20.0]
[1731231996560,14.20802439,205.22,205.16,34.20802439]
[1731231996860,14.20802439,205.25,205.19,34.20802439]
[1731231997078,14.20802439,205.26,205.19,34.20802439]
[1731231997480,14.20802439,205.28,205.21,14.20802439]
[1731231997663,14.33351439,205.29,205.23,14.20802439]
[1731231997862,14.33351439,205.29,205.22,14.20802439]
[1731231998184,14.20802439,205.28,205.23,20.0]
[1731231998789,0.12549,205.29,205.23,20.0]
[1731231998968,0.12549,205.29,205.24,14.20802439]
[1731231999158,0.12549,205.29,205.26,20.0]
[1731231999362,0.12549,205.29,205.25,22.74957885]
[1731231999562,0.12549,205.29,205.26,20.0]
[1731232000382,22.74957885,205.28,205.21,42.74957885]
[1731232000561,22.74957885,205.27,205.21,42.74957885]
[1731232001391,22.87506885,205.29,205.23,22.74957885]
[1731232001678,22.87506885,205.29,205.24,20.0]
[1731232002266,22.87506885,205.29,205.22,22.74957885]
[1731232002463,22.87506885,205.29,205.23,20.0]
[1731232003786,0.12549,205.29,205.25,42.74957885]
[1731232004573,22.74957885,205.28,205.23,20.0]
[1731232005178,22.74957885,205.28,205.22,20.0]
[1731232005768,22.74957885,205.28,205.22,42.74957885]
[1731232007382,22.87506885,205.29,205.22,42.74957885]
[1731232009378,0.12549,205.29,205.23,22.74957885]
[1731232009585,0.12549,205.29,205.25,20.0]
[1731232010186,0.12549,205.29,205.25,22.74957885]
[1731232010392,0.12549,205.29,205.28,20.0]
[1731232010891,0.12549,205.29,205.26,22.74957885]
[1731232011194,0.12549,205.29,205.27,20.0]
[1731232011372,0.12549,205.29,205.28,58.16987885]
[1731232012094,0.12549,205.38,205.29,20.0]
[1731232012268,0.12549,205.38,205.32,22.74957885]
[1731232012468,22.74957885,205.37,205.32,20.0]
[1731232012664,22.87506885,205.38,205.32,20.0]
[1731232012873,0.12549,205.38,205.33,22.74957885]
[1731232013074,0.12549,205.38,205.34,20.0]
[1731232013891,22.87506885,205.38,205.36,20.0]
[1731232014186,0.12549,205.38,205.37,43.776884]
[1731232018891,0.12549,205.38,205.37,66.52646285]
[1731232020279,0.12549,205.38,205.37,83.01526285]
[1731232021392,0.12549,205.38,205.37,74.46799563]
[1731232022579,14.20231163,205.48,205.4,20.0]
[1731232022784,14.20231163,205.48,205.42,14.20231163]
[1731232022985,14.20231163,205.49,205.43,34.20231163]
[1731232023286,14.20231163,205.5,205.45,20.0]
[1731232023472,14.20231163,205.51,205.45,20.0]
[1731232023997,14.11048347,205.51,205.45,20.0]
[1731232024196,14.20231163,205.5,205.45,20.0]
[1731232024492,14.20231163,205.49,205.44,20.0]
[1731232024693,14.20231163,205.49,205.45,23.776884]
[1731232024876,14.20231163,205.51,205.49,23.776884]
[1731232025079,14.20231163,205.51,205.5,20.0]
[1731232025080,14.32780163,205.51,205.5,20.0]
[1731232025293,14.20231163,205.51,205.5,23.776884]
[1731232025478,14.20231163,205.52,205.51,23.776884]
[1731232025679,14.32780163,205.52,205.51,43.776884]
[1731232025888,14.20231163,205.52,205.51,43.776884]
[1731232026189,14.20231163,205.59,205.52,43.776884]
[1731232026396,14.20231163,205.58,205.52,57.97919563]
[1731232026596,14.20231163,205.58,205.52,43.776884]
[1731232026993,14.20231163,205.57,205.52,43.776884]
[1731232027300,22.69442188,205.57,205.52,43.776884]
[1731232027483,22.69442188,205.58,205.52,43.776884]
[1731232027684,22.69442188,205.59,205.52,66.47130588]
[1731232027885,6.2623,205.66,205.52,66.47130588]
[1731232027886,22.69442188,205.6,205.53,22.69442188]
[1731232028092,22.69442188,205.61,205.55,43.776884]
[1731232028290,15.721,205.68,205.59,22.69442188]
[1731232028595,22.69442188,205.64,205.6,43.776884]
[1731232028892,22.69442188,205.63,205.6,43.776884]
[1731232029590,22.69442188,205.62,205.6,43.776884]
[1731232029893,22.69442188,205.61,205.53,22.69442188]
[1731232030102,22.69442188,205.59,205.56,23.776884]
[1731232030282,22.69442188,205.6,205.58,43.776884]
[1731232030482,22.69442188,205.62,205.61,20.0]
[1731232030688,22.69442188,205.63,205.62,43.776884]
[1731232031297,22.69442188,205.64,205.63,20.0]
[1731232031604,0.12549,205.69,205.63,43.776884]
[1731232031605,22.69442188,205.65,205.63,43.776884]
[1731232031804,22.69442188,205.65,205.63,20.0]
[1731232031994,22.69442188,205.66,205.64,43.776884]
[1731232032192,22.69442188,205.66,205.64,23.776884]
[1731232032786,22.69442188,205.65,205.64,23.776884]
[1731232032984,22.69442188,205.65,205.64,43.776884]
[1731232033500,22.81991188,205.65,205.56,20.0]
[1731232033706,22.81991188,205.65,205.58,20.0]
[1731232033707,22.69442188,205.62,205.58,20.0]
[1731232033889,22.69442188,205.62,205.61,23.776884]
[1731232034204,0.1,205.77,205.62,43.776884]
[1731232034502,22.69442188,205.76,205.71,20.0]
[1731232034700,22.69442188,205.76,205.74,23.776884]
[1731232035197,22.69442188,205.76,205.7,20.0]
[1731232036415,22.69442188,205.75,205.68,22.69442188]
[1731232036584,22.69442188,205.72,205.67,20.0]
[1731232037207,22.69442188,205.72,205.66,20.0]
[1731232037715,22.69442188,205.69,205.63,6.3583]
[1731232037904,22.69442188,205.68,205.62,22.69442188]
[1731232038805,22.69442188,205.69,205.62,22.69442188]
[1731232039104,22.69442188,205.68,205.62,22.69442188]
[1731232039483,22.69442188,205.68,205.59,22.2799]
[1731232039484,22.69442188,205.68,205.61,22.69442188]
[1731232039684,22.69442188,205.68,205.63,20.0]
[1731232040305,22.69442188,205.69,205.63,42.69442188]
[1731232041004,22.69442188,205.68,205.61,22.69442188]
[1731232041210,22.69442188,205.68,205.62,20.0]
[1731232041409,22.69442188,205.69,205.63,22.69442188]
[1731232041709,22.69442188,205.71,205.65,22.69442188]
[1731232041910,22.69442188,205.71,205.66,20.0]
[1731232043290,22.69442188,205.71,205.64,22.69442188]